bitfinex-derivatives/quotes_ETHF0:USTF0_20241231
["timestamp","ask_amount","ask_price","bid_price","bid_amount"]
[1735676910101,3.98213956,3356.5,3356.4,0.29842]
[1735676915205,1.64282,3356.5,3356.4,0.29842]
[1735676917607,5.15016866,3356.5,3356.4,0.29842]
[1735676918911,5.15016866,3356.5,3356.4,2.10430931]
[1735676918912,3.50734866,3356.5,3356.4,2.10430931]
[1735676920709,0.2984,3356.7,3356.6,0.29841]
[1735676921913,2.64434515,3356.7,3356.6,0.29841]
[1735676922806,2.64434515,3356.7,3356.4,6.46690658]
[1735676922807,0.29842,3356.6,3356.5,0.29841]
[1735676923007,0.29842,3356.5,3356.4,4.66101727]
[1735676923308,0.76282,3356.5,3356.4,4.66101727]
[1735676924105,0.76282,3356.5,3356.4,4.95944727]
[1735676924305,0.4644,3356.5,3356.4,4.95944727]
[1735676924506,0.4644,3356.5,3356.4,5.41654727]
[1735676924507,0.76282,3356.5,3356.4,5.41654727]
[1735676924706,4.71805017,3356.5,3356.4,0.75553]
[1735676925707,0.76282,3356.5,3356.4,0.75553]
[1735676928617,0.76282,3356.5,3356.4,0.29843]
[1735676928920,0.76282,3356.5,3356.4,4.95944727]
[1735676929720,0.76282,3356.5,3356.4,0.29843]
[1735676932714,0.4644,3356.5,3356.4,0.29843]
[1735676932916,2.64480479,3356.6,3356.5,0.29842]
[1735676933121,3.07960479,3356.6,3356.5,0.29842]
[1735676933422,2.34639479,3356.6,3356.5,3.50622]
[1735676934014,2.64480479,3356.6,3356.5,3.50622]
[1735676934215,2.34639479,3356.6,3356.5,3.50622]
[1735676934417,2.64480479,3356.6,3356.5,3.50622]
[1735676935518,0.29841,3356.6,3356.5,3.50622]
[1735676936422,2.64479479,3356.7,3356.6,0.29841]
[1735676938620,2.34639479,3356.7,3356.6,0.29841]
[1735676939223,2.64479479,3356.7,3356.6,0.74451]
[1735676939426,0.2984,3356.7,3356.6,0.74451]
[1735676940313,0.2984,3356.7,3356.6,0.29841]
[1735676940727,0.29841,3356.6,3356.5,3.50621]
[1735676943324,0.29841,3356.6,3356.5,8.16722727]
[1735676946316,2.64473565,3356.6,3356.5,4.95942727]
[1735676946524,2.64473565,3356.6,3356.5,4.66101727]
[1735676947125,2.34632565,3356.6,3356.5,4.95943727]
[1735676947621,3.95520937,3356.6,3356.5,0.29842]
[1735676948829,3.50734866,3356.8,3356.7,0.2984]
[1735676949019,3.50734866,3356.8,3356.7,2.10428931]
[1735676950129,2.34743421,3357.0,3356.9,0.29838]
[1735676950329,2.34743421,3357.0,3356.9,1.49338]
[1735676951133,2.34743421,3357.0,3356.9,6.16134745]
[1735676951333,3.10270421,3357.0,3356.9,6.16134745]
[1735676952733,2.80433421,3357.0,3356.9,1.49338]
[1735676954833,2.80433421,3357.0,3356.9,6.16134745]
[1735676956140,0.4569,3357.0,3356.9,6.16134745]
[1735676956431,2.79103421,3357.1,3357.0,0.29837]
[1735676956632,2.79103421,3357.1,3357.0,2.10425931]
[1735676957434,2.79103421,3357.1,3357.0,6.77222676]
[1735676957435,0.4436,3357.1,3357.0,6.77222676]
[1735676961041,2.34743421,3357.3,3357.2,0.29835]
[1735676962243,2.34743421,3357.3,3357.2,3.50615]
[1735676962446,2.34743421,3357.4,3357.2,3.2078]
[1735676962644,2.34743421,3357.4,3357.3,0.29835]
[1735676963236,2.34743421,3357.4,3357.3,2.10423931]
[1735676964042,0.4376,3357.5,3357.3,6.47385676]
[1735676964243,0.4376,3357.5,3357.4,0.29834]
[1735676969457,0.73593,3357.5,3357.4,0.29834]
[1735676971556,0.73593,3357.5,3357.3,0.29834]
[1735676971557,0.29835,3357.4,3357.3,0.29834]
[1735676973162,2.64578421,3357.4,3357.3,0.29834]
[1735676975851,0.29835,3357.4,3357.3,0.29834]
[1735676980261,0.29835,3357.4,3357.3,1.15182049]
[1735676981965,2.78503421,3357.5,3357.2,0.29835]
[1735676982165,0.29835,3357.3,3357.2,0.29835]
[1735676983362,2.64578421,3357.3,3357.2,0.29835]
[1735676983762,2.34743421,3357.3,3357.2,0.29835]
[1735676984069,2.64578421,3357.3,3357.2,0.29835]
[1735676986358,2.34743421,3357.3,3357.2,0.29835]
[1735676986559,2.34743421,3357.3,3357.2,3.50615]
[1735676987465,2.34743421,3357.5,3357.4,0.29834]
[1735676987666,2.64576421,3357.5,3357.4,0.29834]
[1735676987867,0.29835,3357.4,3357.3,0.29834]
[1735676988573,0.29835,3357.4,3357.3,1.15182049]
[1735676988867,2.34743421,3357.4,3357.1,0.85348049]
[1735676989066,0.75395,3357.3,3357.2,0.29835]
[1735676989370,0.4556,3357.3,3357.2,0.29835]
[1735676989670,0.75395,3357.3,3357.2,0.29835]
[1735676991269,0.4556,3357.3,3357.0,4.66796745]
[1735676991464,0.29836,3357.2,3357.1,0.29835]
[1735676991668,0.29836,3357.1,3357.0,4.96633745]
[1735676991865,0.29838,3356.9,3356.8,3.2078]
[1735676992168,0.29839,3356.8,3356.7,4.66796745]
[1735676992368,0.73919,3356.8,3356.7,4.66796745]
[1735676992967,0.73919,3356.8,3356.7,4.96636745]
[1735676993366,0.88857285,3356.8,3356.7,0.2984]
[1735676995376,1.18696285,3356.8,3356.7,0.2984]
[1735676995972,5.87874066,3356.8,3356.7,0.2984]
[1735676996171,5.58035066,3356.8,3356.7,0.2984]
[1735676996975,5.87874066,3356.8,3356.7,2.10259355]
[1735676997280,3.08444993,3356.8,3356.7,2.10259355]
[1735676998364,2.78605993,3356.8,3356.7,2.10259355]
[1735676999170,2.34525993,3356.8,3356.7,2.10259355]
[1735677000267,0.73228,3357.0,3356.7,1.80419355]
[1735677000268,2.77915993,3357.0,3356.7,1.80419355]
[1735677000471,0.29839,3356.8,3356.7,1.80419355]
[1735677000670,0.29839,3356.9,3356.8,0.29838]
[1735677000872,2.77915993,3357.0,3356.7,1.80419355]
[1735677001165,3.07752993,3357.0,3356.9,0.29838]
[1735677001369,0.73227,3357.0,3356.9,0.29838]
[1735677001567,3.25455993,3357.1,3356.8,0.4555]
[1735677001770,2.34525993,3357.1,3357.0,5.31036355]
[1735677002777,3.08268993,3357.5,3357.4,0.29834]
[1735677003577,3.08268993,3357.5,3357.4,2.10253355]
[1735677004675,2.78435993,3357.5,3357.4,2.10253355]
[1735677004875,3.08268993,3357.5,3357.4,2.10253355]
[1735677005478,2.78435993,3357.5,3357.4,2.10253355]
[1735677005877,3.08268993,3357.5,3357.4,2.10253355]
[1735677006475,0.73743,3357.5,3357.4,2.10253355]
[1735677006668,0.73743,3357.5,3357.4,0.29834]
[1735677007472,0.4391,3357.5,3357.1,6.472161]
[1735677007675,0.4391,3357.5,3357.1,4.66796745]
[1735677007676,0.29835,3357.2,3357.1,4.66796745]
[1735677007879,0.4433,3357.4,3357.3,0.29835]
[1735677008177,0.74164,3357.4,3357.3,0.29835]
[1735677008574,0.4433,3357.4,3357.1,1.80419355]
[1735677008770,0.29835,3357.3,3357.2,0.29835]
[1735677008979,0.4433,3357.4,3357.3,0.29835]
[1735677009179,2.78435993,3357.5,3357.4,0.29834]
[1735677009379,2.78435993,3357.5,3357.4,2.10253355]
[1735677009581,0.4391,3357.5,3357.4,2.10253355]
[1735677010479,0.73743,3357.5,3357.4,0.29834]
[1735677011180,3.08167725,3357.5,3357.4,0.29834]
[1735677012181,4.25380088,3357.5,3357.4,0.29834]
[1735677013086,3.95547088,3357.5,3357.1,1.80419355]
[1735677013283,0.29836,3357.2,3357.1,0.29836]
[1735677013481,3.2078,3357.2,3356.9,7.00195118]
[1735677013794,0.29837,3357.0,3356.9,7.00195118]
[1735677014087,0.29837,3357.0,3356.9,4.20035118]
[1735677014283,5.29837,3357.0,3356.9,3.49995118]
[1735677014688,0.29837,3357.0,3356.9,3.49995118]
[1735677014886,0.29842,3356.5,3356.4,0.29842]
[1735677015887,3.2078,3356.6,3356.1,5.11227943]
[1735677016086,3.50624,3356.2,3356.1,4.66857943]
[1735677016386,3.50624,3356.2,3356.1,1.89227943]
[1735677016685,0.29848,3355.8,3355.7,9.34827703]
[1735677016882,2.10267355,3355.8,3355.7,9.34827703]
[1735677017090,5.31047355,3355.8,3355.7,9.34827703]
[1735677017291,10.31047355,3355.8,3355.7,9.34827703]
[1735677017590,11.22175147,3355.8,3355.7,7.51486703]
[1735677017788,14.13775147,3355.8,3355.7,5.11867703]
[1735677017991,14.13775147,3355.8,3355.7,4.00058703]
[1735677018192,0.29859,3354.6,3354.4,0.2986]
[1735677018482,0.29859,3354.6,3354.3,0.4546]
[1735677018686,0.29858,3354.7,3354.6,0.29858]
[1735677018891,0.29858,3354.8,3354.3,2.25879355]
[1735677019092,0.29856,3354.9,3354.7,0.29857]
[1735677019292,3.2078,3355.0,3354.6,0.4419]
[1735677019592,0.29856,3354.9,3354.8,0.29856]
[1735677019789,5.84627182,3355.0,3354.8,0.29856]
[1735677020189,0.29856,3354.9,3354.8,0.29856]
[1735677020681,2.33991182,3355.0,3354.6,2.24609355]
[1735677020888,0.93871182,3355.3,3355.2,0.29853]
[1735677021088,0.03871182,3355.3,3355.2,2.10272355]
[1735677021392,3.50986774,3355.4,3355.3,0.29852]
[1735677021687,0.58717956,3355.4,3355.3,3.50632]
[1735677022597,0.29847,3356.0,3355.9,0.29847]
[1735677023091,3.2078,3356.2,3355.7,3.2078]
[1735677023290,0.29847,3355.9,3355.8,0.29847]
[1735677024193,3.2078,3356.2,3355.7,3.2078]
[1735677024396,0.29846,3356.1,3356.0,0.29846]
[1735677024589,3.2078,3356.2,3355.8,1.80419355]
[1735677024785,3.2078,3356.2,3356.1,2.10264355]
[1735677024987,3.2078,3356.2,3356.1,0.29845]
[1735677025300,0.73443,3356.4,3356.3,0.29843]
[1735677026703,0.29845,3356.2,3356.1,0.29845]
[1735677026894,0.29846,3356.1,3355.8,1.80419355]
[1735677027099,1.19379,3356.8,3356.1,0.29844]
[1735677027294,0.29844,3356.3,3356.2,0.29844]
[1735677027797,0.29844,3356.2,3356.1,2.10264355]
[1735677028094,1.19379,3356.8,3356.1,2.10264355]
[1735677028390,1.19379,3356.8,3356.2,0.29844]
[1735677028596,0.29843,3356.3,3356.2,0.29844]
[1735677028997,1.19379,3356.8,3355.8,1.80419355]
[1735677029194,0.29845,3356.2,3356.1,0.29845]
[1735677030389,3.2078,3356.5,3355.8,1.80419355]
[1735677030596,3.2078,3356.5,3356.0,0.29846]
[1735677030597,0.29846,3356.1,3356.0,0.29846]
[1735677031193,3.2078,3356.5,3355.8,1.80419355]
[1735677031597,0.29846,3356.0,3355.9,0.29847]
[1735677031800,0.29848,3355.8,3355.7,3.50628]
[1735677033097,0.74608,3356.4,3355.7,3.2078]
[1735677033299,0.29848,3355.9,3355.8,0.29847]
[1735677035495,0.74608,3356.4,3355.6,0.9241]
[1735677035697,0.29848,3355.8,3355.7,0.29848]
[1735677036502,0.29849,3355.7,3355.6,0.76219]
[1735677036903,0.457,3356.1,3355.6,0.76219]
[1735677037109,0.29848,3355.9,3355.8,0.29847]
[1735677037607,0.29847,3356.0,3355.9,0.29846]
[1735677038196,3.2078,3356.5,3355.7,3.2078]
[1735677038397,0.29843,3356.4,3355.8,1.80419355]
[1735677038602,3.50622,3356.5,3356.4,0.29843]
[1735677042806,0.29843,3356.4,3356.3,0.428]
[1735677047508,0.29843,3356.4,3356.3,0.72643]
[1735677048212,0.29843,3356.4,3356.3,0.428]
[1735677048615,0.29843,3356.4,3356.3,0.72643]
[1735677049410,0.74594,3357.0,3356.3,5.43999355]
[1735677049615,0.29841,3356.7,3356.6,2.10259355]
[1735677050412,0.29838,3357.0,3356.9,0.29837]
[1735677050716,0.29839,3356.9,3356.8,0.29838]
[1735677052117,0.29839,3356.8,3356.7,1.2007]
[1735677052320,0.29842,3356.5,3356.4,1.49342]
[1735677052613,0.29841,3356.7,3356.6,0.2984]
[1735677052820,0.2984,3356.8,3356.7,0.29839]
[1735677053909,0.29841,3356.7,3356.6,0.2984]
[1735677060216,0.29842,3356.6,3356.5,0.29841]
[1735677060415,0.29843,3356.4,3355.9,3.50626]
[1735677060617,0.29846,3356.0,3355.9,3.2078]
[1735677061032,3.2078,3356.2,3355.7,9.30542905]
[1735677061225,0.29848,3355.8,3355.7,9.30542905]
[1735677061826,0.29848,3355.8,3355.7,9.60391905]
[1735677062423,0.29849,3355.7,3355.6,0.4633]
[1735677062627,0.29851,3355.5,3355.4,3.2078]
[1735677062831,0.29851,3355.5,3355.4,3.50631]
[1735677064229,0.29851,3355.6,3355.5,0.2985]
[1735677064931,0.4305,3355.9,3355.4,3.2078]
[1735677065132,0.29853,3355.2,3355.1,0.4315]
[1735677067237,2.22459355,3355.3,3354.5,3.655]
[1735677067442,0.29859,3354.6,3354.5,0.4396]
[1735677067739,1.80419355,3354.7,3354.1,0.29863]
[1735677067938,0.29863,3354.2,3354.1,0.29863]
[1735677068239,0.29862,3354.3,3354.2,0.29862]
[1735677068544,3.2078,3354.5,3354.0,1.315]
[1735677069039,0.29862,3354.2,3354.1,0.29862]
[1735677069237,0.29862,3354.2,3354.0,1.315]
[1735677069238,3.2078,3354.5,3354.0,1.315]
[1735677069547,0.29863,3354.1,3354.0,0.4396]
[1735677070044,0.29863,3354.1,3354.0,0.73824]
[1735677070729,0.29863,3354.1,3354.0,0.4396]
[1735677070936,0.29863,3354.1,3354.0,0.73824]
[1735677072241,0.29862,3354.2,3354.1,0.29862]
[1735677072441,0.29863,3354.1,3354.0,0.73823]
[1735677073142,0.29863,3354.2,3354.1,0.29863]
[1735677073738,0.29863,3354.2,3354.0,0.4396]
[1735677073940,0.29863,3354.1,3354.0,0.73824]
[1735677075647,0.29863,3354.1,3354.0,0.4396]
[1735677076140,0.29863,3354.1,3354.0,0.73824]
[1735677077338,0.29602734,3354.1,3354.0,0.4396]
[1735677078642,0.29866,3353.8,3353.7,3.2078]
[1735677079738,0.8946,3354.0,3353.5,0.4592]
[1735677080049,0.29867,3353.6,3353.5,0.4592]
[1735677080450,0.29867,3353.6,3353.5,0.75788]
[1735677080749,3.50647,3353.6,3353.5,0.4592]
[1735677081046,0.29874,3352.9,3352.8,0.29874]
[1735677081246,0.29875,3352.8,3352.6,0.4629]
[1735677081453,0.29875,3352.7,3352.6,0.76166]
[1735677081645,0.29875,3352.7,3352.6,0.4629]
[1735677081949,0.29875,3352.7,3352.0,3.2078]
[1735677081950,1.80419355,3352.7,3352.0,3.2078]
[1735677082144,0.29879,3352.3,3352.0,3.6707]
[1735677082344,0.2988,3352.2,3352.0,3.6707]
[1735677082545,0.2988,3352.2,3352.1,0.29881]
[1735677082748,0.4615,3352.6,3352.0,3.6707]
[1735677082954,0.29877,3352.5,3352.4,0.29877]
[1735677083257,0.29874,3352.9,3352.6,0.29876]
[1735677083449,0.29878,3352.5,3352.4,0.29877]
[1735677083648,1.80419355,3352.9,3352.0,3.6707]
[1735677083846,0.29876,3352.7,3352.6,0.29876]
[1735677084055,0.29877,3352.6,3352.5,0.29877]
[1735677084750,0.29878,3352.5,3352.4,0.29877]
[1735677085051,0.29875,3352.8,3352.5,0.29877]
[1735677085247,1.80419355,3352.9,3352.4,0.29878]
[1735677085548,0.29878,3352.5,3352.4,0.29878]
[1735677087046,1.80419355,3352.9,3352.0,3.6707]
[1735677087251,0.29877,3352.6,3352.5,0.29877]
[1735677088050,0.4615,3353.0,3352.1,0.74701]
[1735677088252,0.4615,3353.0,3352.6,0.29876]
[1735677088253,0.29876,3352.7,3352.6,0.29876]
[1735677088449,0.29876,3352.7,3352.3,0.4625]
[1735677088641,0.29877,3352.6,3352.5,0.29877]
[1735677088841,0.29877,3352.6,3352.3,0.4625]
[1735677089048,0.29877,3352.6,3352.5,0.29877]
[1735677089754,0.29877,3352.5,3352.4,0.76008]
[1735677090653,0.4615,3353.0,3352.4,0.4613]
[1735677090954,0.29877,3352.6,3352.5,0.29876]
[1735677093350,0.29877,3352.6,3352.4,0.4613]
[1735677093548,0.29877,3352.5,3352.4,0.76007]
[1735677093752,0.29877,3352.6,3352.5,0.29876]
[1735677095248,1.04559,3352.9,3352.5,0.29877]
[1735677095456,0.29877,3352.6,3352.5,0.29877]
[1735677095858,0.4615,3353.0,3352.4,3.6691]
[1735677096057,0.29871,3353.3,3353.2,0.2987]
[1735677096248,0.74668,3353.7,3353.2,3.2078]
[1735677096249,0.74107,3353.7,3353.2,3.2078]
[1735677096459,0.29869,3353.6,3353.3,1.346]
[1735677096654,0.29869,3353.6,3353.5,0.29868]
[1735677096956,0.29869,3353.5,3353.4,0.29869]
[1735677097860,0.74107,3353.7,3353.6,0.29867]
[1735677098055,1.80419355,3353.7,3352.4,0.74694]
[1735677098255,0.29877,3352.6,3352.5,0.29877]
[1735677098460,0.29877,3352.6,3352.4,0.29878]
[1735677098658,0.29876,3352.7,3352.5,0.29876]
[1735677098959,0.29876,3352.6,3352.5,0.29876]
[1735677099258,0.29876,3352.6,3352.3,3.2078]
[1735677099259,0.29878,3352.5,3352.4,0.29877]
[1735677100056,0.29877,3352.6,3352.5,0.29876]
[1735677100462,1.18014,3353.0,3352.0,2.542]
[1735677100463,3.6411,3353.0,3352.0,2.542]
[1735677100664,3.6411,3353.0,3352.0,1.346]
[1735677100860,0.2988,3352.3,3352.2,0.29879]
[1735677101363,1.80419355,3352.5,3351.9,3.2078]
[1735677101559,0.29882,3352.0,3351.9,3.2078]
[1735677102254,1.64556,3352.4,3351.7,0.29884]
[1735677102458,0.29883,3351.8,3351.7,0.29884]
[1735677102861,0.29885,3351.7,3351.6,0.29885]
[1735677103162,0.74702,3352.2,3351.3,4.5158]
[1735677103552,0.29887,3351.4,3351.3,4.81467]
[1735677104159,0.29887,3351.4,3351.3,1.60688]
[1735677104962,1.80419355,3351.6,3351.0,3.5067]
[1735677105159,1.80419355,3351.6,3350.8,1.15802]
[1735677105364,0.74718,3351.4,3350.8,1.15802]
[1735677105565,0.29891,3351.0,3350.8,0.8591]
[1735677105752,0.29891,3350.9,3350.8,1.15802]
[1735677106153,0.29891,3351.0,3350.9,0.29891]
[1735677106960,0.2989,3351.1,3351.0,0.2989]
[1735677107263,0.29891,3351.0,3350.9,0.29891]
[1735677107563,0.2989,3351.1,3350.9,0.29891]
[1735677107754,0.29888,3351.3,3350.8,0.8591]
[1735677107955,0.2989,3351.2,3350.8,0.8591]
[1735677108159,0.29889,3351.3,3351.1,0.29889]
[1735677108359,0.29889,3351.3,3350.8,0.8591]
[1735677108360,0.29888,3351.4,3350.9,0.29891]
[1735677108565,2.25739355,3351.6,3350.8,0.8591]
[1735677108862,0.29888,3351.3,3351.2,0.29888]
[1735677109069,0.29889,3351.3,3351.1,0.29889]
[1735677109362,3.6513,3351.7,3350.8,0.8591]
[1735677109363,3.6513,3351.7,3351.0,3.2078]
[1735677109560,0.29882,3352.0,3351.8,0.29883]
[1735677109753,0.4572,3352.3,3351.3,0.7472]
[1735677109754,0.7425,3352.2,3352.1,0.29881]
[1735677109955,0.7425,3352.2,3351.8,0.29883]
[1735677109956,0.29881,3352.1,3351.8,0.29883]
[1735677110158,0.29884,3351.8,3351.7,0.29884]
[1735677110866,1.80419355,3351.9,3351.4,0.8665]
[1735677111061,0.29885,3351.7,3351.6,0.29885]
[1735677111468,0.29885,3351.6,3351.5,0.29886]
[1735677111669,1.80419355,3351.9,3351.4,0.8665]
[1735677111966,0.29883,3351.8,3351.7,0.29884]
[1735677112162,3.2078,3352.0,3351.8,0.29883]
[1735677112163,0.29883,3351.9,3351.8,0.29883]
[1735677112361,3.2078,3352.0,3351.4,0.8665]
[1735677112568,0.29884,3351.8,3351.7,0.29884]
[1735677113763,0.29884,3351.8,3351.4,0.8665]
[1735677113764,0.29883,3351.9,3351.8,0.29883]
[1735677113969,3.2078,3352.0,3351.4,0.8665]
[1735677114172,0.29884,3351.8,3351.7,0.29884]
[1735677114771,3.50662,3352.0,3351.9,0.29883]
[1735677115064,0.29883,3351.9,3351.8,0.29883]
[1735677116167,3.50662,3352.0,3351.9,0.29883]
[1735677116365,3.2078,3352.0,3351.9,0.29883]
[1735677116965,3.50662,3352.0,3351.9,0.29883]
[1735677118771,3.2078,3352.0,3351.9,0.29883]
[1735677119071,3.2078,3352.6,3352.1,0.29881]
[1735677119271,0.29877,3352.6,3352.1,2.10300355]
[1735677119569,0.29877,3352.6,3352.5,0.29877]
[1735677120167,3.93711554,3352.7,3352.2,0.4599]
[1735677120373,3.93711554,3352.7,3351.9,0.29882]
[1735677120374,0.29882,3352.0,3351.9,0.29882]
[1735677120972,0.29884,3351.8,3351.7,0.29884]
[1735677121466,0.29882,3352.0,3351.9,0.29882]
[1735677125261,0.4357,3352.1,3352.0,0.29882]
[1735677125971,0.2988,3352.2,3352.1,0.2988]
[1735677126272,0.29881,3352.2,3352.1,0.2988]
[1735677127468,3.2078,3352.3,3351.6,0.9235]
[1735677127667,0.29884,3351.8,3351.7,0.29884]
[1735677129576,1.80419355,3351.8,3351.1,3.2078]
[1735677129778,0.29889,3351.2,3351.0,0.7289]
[1735677129976,0.2989,3351.1,3351.0,0.72891]
[1735677130180,0.2989,3351.1,3351.0,0.43]
[1735677130479,0.29891,3351.0,3350.9,6.99015686]
[1735677130770,3.97041,3351.0,3350.9,6.99015686]
[1735677131368,3.97041,3351.0,3350.5,11.91674449]
[1735677131369,3.6715,3351.0,3350.5,0.29894]
[1735677131573,0.29894,3350.6,3350.5,0.29894]
[1735677131973,0.29894,3350.7,3350.6,0.29894]
[1735677132277,0.4637,3351.0,3350.9,0.29891]
[1735677132478,0.29889,3351.2,3351.1,0.2989]
[1735677132673,0.2989,3351.1,3351.0,0.2989]
[1735677133173,3.49381554,3351.3,3350.3,0.43]
[1735677133480,0.29894,3350.7,3350.6,0.29894]
[1735677133780,0.29896,3350.4,3350.3,0.72896]
[1735677134079,0.29896,3350.4,3350.3,0.43]
[1735677134284,0.4276,3350.6,3350.2,3.96468]
[1735677134285,0.29897,3350.3,3350.2,3.96468]
[1735677134477,0.29897,3350.3,3350.2,3.6657]
[1735677134779,0.29897,3350.3,3350.2,3.96468]
[1735677135282,0.29897,3350.3,3350.2,3.6657]
[1735677135675,0.29897,3350.3,3350.2,3.2078]
[1735677138176,3.2078,3350.3,3350.0,6.0]
[1735677138483,0.29899,3350.1,3350.0,6.0]
[1735677139179,3.50678,3350.3,3350.1,0.29899]
[1735677139379,0.29898,3350.2,3350.1,0.29899]
[1735677139581,0.29899,3350.1,3350.0,6.29899]
[1735677139882,0.29899,3350.1,3350.0,6.0]
[1735677151684,0.29693889,3350.1,3350.0,6.0]
[1735677155089,0.74083889,3350.1,3350.0,6.0]
[1735677156783,3.2078,3350.3,3350.0,6.0]
[1735677156985,2.916,3350.5,3350.1,0.74619]
[1735677156986,0.29898,3350.2,3350.1,0.74619]
[1735677157185,0.29898,3350.2,3350.1,0.4472]
[1735677158186,1.80419355,3350.3,3350.0,6.0]
[1735677158388,0.75789,3350.1,3350.0,6.0]
[1735677162984,0.75789,3350.1,3350.0,6.299]
[1735677163197,0.29899,3350.1,3350.0,6.299]
[1735677163394,3.2078,3350.3,3350.0,6.299]
[1735677163395,3.2078,3350.3,3350.0,6.0]
[1735677163595,0.29899,3350.2,3350.1,0.29898]
[1735677164496,0.29899,3350.1,3350.0,6.29899]
[1735677165590,0.29899,3350.1,3350.0,6.299]
[1735677165796,0.29899,3350.1,3350.0,6.0]
[1735677165992,0.29899,3350.1,3350.0,6.299]
[1735677167690,0.29899,3350.2,3350.1,0.29898]
[1735677167895,0.29899,3350.2,3350.0,6.0]
[1735677167896,4.33381995,3350.7,3350.0,6.0]
[1735677168189,3.95514,3350.7,3350.0,6.0]
[1735677168802,0.29897,3350.4,3350.3,0.29896]
[1735677169297,0.74736,3350.6,3350.0,6.0]
[1735677169504,0.29899,3350.1,3350.0,6.29899]
[1735677169696,0.29899,3350.1,3350.0,6.0]
[1735677169896,0.29899,3350.1,3350.0,6.299]
[1735677170500,0.29898,3350.3,3350.2,0.29897]
[1735677171406,0.74737,3350.6,3350.0,6.0]
[1735677171599,0.29898,3350.3,3350.2,0.29897]
[1735677171801,0.29897,3350.4,3350.3,0.29896]
[1735677172404,0.29896,3350.5,3350.4,0.29895]
[1735677172604,0.29895,3350.6,3350.5,0.29894]
[1735677175411,0.29896,3350.5,3350.4,0.29895]
[1735677175715,2.63381716,3350.7,3350.6,0.29894]
[1735677176813,3.79275554,3350.7,3350.6,0.29894]
[1735677177014,3.49381554,3350.7,3350.3,0.4461]
[1735677177216,0.29896,3350.4,3350.3,0.74507]
[1735677177805,0.29895,3350.5,3350.4,0.29895]
[1735677178010,0.29895,3350.6,3350.5,0.29895]
[1735677178212,3.79276554,3350.6,3350.5,0.29895]
[1735677178512,3.49381554,3350.6,3350.5,0.29895]
[1735677178717,2.79291554,3350.6,3350.5,3.50675]
[1735677179716,2.64572152,3350.9,3350.8,0.29892]
[1735677180813,0.29892,3350.9,3350.8,0.29892]
[1735677183114,0.29893,3350.8,3350.7,0.29893]
[1735677183716,2.64571152,3351.0,3350.9,0.29891]
[1735677184419,0.29893,3350.9,3350.8,0.29891]
[1735677184622,2.34680152,3351.0,3350.5,8.63469072]
[1735677184816,2.64571152,3351.0,3350.9,0.29891]
[1735677185122,0.29891,3351.0,3350.9,0.29891]
[1735677185627,2.64571152,3351.1,3351.0,0.29891]
[1735677186120,2.34680152,3351.1,3351.0,0.29891]
[1735677186515,2.34680152,3351.2,3351.1,0.2989]
[1735677187116,0.24410152,3351.2,3351.1,5.2989]
[1735677187316,4.66796276,3351.6,3351.5,0.29886]
[1735677187623,4.66796276,3351.6,3351.5,5.31085355]
[1735677187821,4.66796276,3351.6,3351.5,3.2078]
[1735677188019,0.74716,3351.6,3351.0,0.4628]
[1735677188320,3.629,3351.7,3351.6,0.29885]
[1735677188321,0.72005,3351.7,3351.6,0.29885]
[1735677188527,0.44,3351.9,3351.8,0.29883]
[1735677188720,0.44,3351.9,3351.5,3.2078]
[1735677188928,0.29885,3351.7,3351.6,0.29884]
[1735677189618,0.44,3351.9,3351.5,3.2078]
[1735677189818,0.44,3351.9,3351.8,0.29883]
[1735677190018,0.72003,3352.0,3351.9,0.29883]
[1735677190216,0.4212,3352.0,3351.9,0.29883]
[1735677191320,0.72002,3352.0,3351.9,0.29883]
[1735677191624,0.4212,3352.0,3351.9,0.29883]
[1735677193827,0.7542,3352.3,3351.7,1.80419355]
[1735677194032,0.7542,3352.3,3352.2,0.2988]
[1735677194221,0.4554,3352.3,3351.7,1.80419355]
[1735677194421,0.29881,3352.2,3352.1,0.2988]
[1735677195929,0.2988,3352.2,3352.1,0.2988]
[1735677196828,0.75419,3352.3,3352.2,0.2988]
[1735677198024,0.2988,3352.2,3352.1,0.2988]
[1735677198425,0.7542,3352.3,3352.2,0.2988]
[1735677198727,0.4554,3352.3,3351.8,0.74708]
[1735677199033,0.75419,3352.3,3352.2,0.2988]
[1735677199234,0.29881,3352.2,3352.1,0.2988]
[1735677199434,0.29881,3352.1,3352.0,0.29881]
[1735677199630,0.7542,3352.3,3352.2,0.2988]
[1735677200634,0.4554,3352.3,3352.2,0.2988]
[1735677200835,0.75419,3352.3,3352.2,0.2988]
[1735677202334,0.4554,3352.3,3351.8,0.74709]
[1735677202635,0.29881,3352.2,3352.1,0.2988]
[1735677203031,0.4554,3352.3,3351.6,1.63074]
[1735677203226,0.4358,3352.1,3351.6,1.63074]
[1735677203433,0.4358,3352.1,3352.0,0.29882]
[1735677203434,0.73462,3352.1,3352.0,0.29882]
[1735677207534,0.73462,3352.1,3351.9,0.29882]
[1735677207535,0.29883,3352.0,3351.9,0.29882]
[1735677208437,0.4358,3352.1,3351.6,0.4439]
[1735677208637,0.75894,3351.9,3351.8,0.29883]
[1735677210442,0.75894,3351.9,3351.5,3.2078]
[1735677210641,0.29885,3351.6,3351.5,3.2078]
[1735677211334,0.29888,3351.3,3351.2,0.29889]
[1735677212743,0.29893,3350.9,3350.6,3.2078]
[1735677212932,0.74233,3350.8,3350.7,0.29893]
[1735677213244,0.4434,3350.8,3350.2,7.88732072]
[1735677213436,0.29897,3350.4,3350.3,0.29897]
[1735677214141,0.29897,3350.3,3350.2,3.50677]
[1735677215038,0.8792,3350.7,3350.2,3.2078]
[1735677215243,0.29895,3350.6,3350.5,0.29894]